[Event "*** SCC Grand Prix: Titled Tuesday Blitz"]
[Site "Chess.com"]
[Date "2020.08.25"]
[Round "1"]
[White "lucachess49"]
[Black "WonderChampion"]
[Result "1-0"]
[WhiteElo "2471"]
[BlackElo "1979"]
[TimeControl "180+1"]
[EndTime "10:06:54 PDT"]
[Termination "lucachess49 won by resignation"]

1. d4 {[%clk 0:02:55.3]} 1... d5 {[%clk 0:02:59.4]} 2. c4 {[%clk 0:02:55.7]}
2... e6 {[%clk 0:02:59.4]} 3. Nc3 {[%clk 0:02:56.2]} 3... c6 {[%clk 0:02:54.7]}
4. e3 {[%clk 0:02:53.8]} 4... Nf6 {[%clk 0:02:50.5]} 5. Nf3 {[%clk 0:02:52.7]}
5... Bd6 {[%clk 0:02:47.5]} 6. Qc2 {[%clk 0:02:52.1]} 6... O-O {[%clk 0:02:36]}
7. Bd3 {[%clk 0:02:51.1]} 7... dxc4 {[%clk 0:02:29.9]} 8. Bxc4 {[%clk 0:02:52]}
8... b5 {[%clk 0:02:26.7]} 9. Bd3 {[%clk 0:02:51.9]} 9... Bb7 {[%clk 0:02:22.5]}
10. O-O {[%clk 0:02:49.8]} 10... Nbd7 {[%clk 0:02:12.6]} 11. h3 {[%clk
0:02:01.3]} 11... a6 {[%clk 0:02:11]} 12. e4 {[%clk 0:01:52.2]} 12... e5 {[%clk
0:02:08.7]} 13. dxe5 {[%clk 0:01:43.6]} 13... Nxe5 {[%clk 0:02:09.6]} 14. Nxe5
{[%clk 0:01:43.9]} 14... Bxe5 {[%clk 0:02:09.8]} 15. Be3 {[%clk 0:01:44.8]}
15... Rc8 {[%clk 0:02:06.5]} 16. Rad1 {[%clk 0:01:42.8]} 16... Qc7 {[%clk
0:01:58.2]} 17. f4 {[%clk 0:01:42.6]} 17... Bxc3 {[%clk 0:01:56.7]} 18. bxc3
{[%clk 0:01:39.8]} 18... h6 {[%clk 0:01:53.1]} 19. Bc5 {[%clk 0:01:06.9]} 19...
Rfe8 {[%clk 0:01:46.6]} 20. e5 {[%clk 0:00:54.4]} 20... Nd5 {[%clk 0:01:43.7]}
21. c4 {[%clk 0:00:54.3]} 21... Ne7 {[%clk 0:01:35.6]} 22. Qe2 {[%clk
0:00:45.7]} 22... Rcd8 {[%clk 0:01:31.6]} 23. Qe4 {[%clk 0:00:43.4]} 23... g6
{[%clk 0:01:26.7]} 24. Bd6 {[%clk 0:00:39.2]} 24... Qb6+ {[%clk 0:01:21.6]} 25.
c5 {[%clk 0:00:38.7]} 25... Qa5 {[%clk 0:01:19.9]} 26. f5 {[%clk 0:00:31.5]}
26... Nxf5 {[%clk 0:01:09.7]} 27. Rxf5 {[%clk 0:00:29.5]} 27... Re6 {[%clk
0:01:05.9]} 28. Rf6 {[%clk 0:00:20]} 28... Rxf6 {[%clk 0:00:59.4]} 29. exf6
{[%clk 0:00:20.9]} 29... Qc3 {[%clk 0:00:54.6]} 30. Qf3 {[%clk 0:00:18]} 30...
Qd4+ {[%clk 0:00:53.7]} 31. Kh1 {[%clk 0:00:17.6]} 31... Qh4 {[%clk 0:00:47.1]}
32. Bxg6 {[%clk 0:00:16.5]} 32... fxg6 {[%clk 0:00:44.1]} 33. f7+ {[%clk
0:00:16.4]} 33... Kg7 {[%clk 0:00:43.2]} 34. f8=Q+ {[%clk 0:00:16.2]} 34... Rxf8
{[%clk 0:00:43.6]} 35. Qxf8+ {[%clk 0:00:16.2]} 35... Kh7 {[%clk 0:00:43.5]} 36.
Rf1 {[%clk 0:00:16.1]} 1-0

[Event "*** SCC Grand Prix: Titled Tuesday Blitz"]
[Site "Chess.com"]
[Date "2020.08.25"]
[Round "1"]
[White "Flawless_Fighter"]
[Black "lifeissofun"]
[Result "1-0"]
[WhiteElo "2559"]
[BlackElo "2234"]
[TimeControl "180+1"]
[EndTime "10:06:55 PDT"]
[Termination "Flawless_Fighter won by resignation"]

1. e4 {[%clk 0:02:49.4]} 1... c5 {[%clk 0:02:59.1]} 2. Nf3 {[%clk 0:02:47.5]}
2... d6 {[%clk 0:02:59.6]} 3. d4 {[%clk 0:02:45.2]} 3... cxd4 {[%clk 0:03:00.5]}
4. Nxd4 {[%clk 0:02:45]} 4... Nf6 {[%clk 0:03:01.2]} 5. Nc3 {[%clk 0:02:45.2]}
5... a6 {[%clk 0:03:01.8]} 6. Bc4 {[%clk 0:02:44.7]} 6... e6 {[%clk 0:03:01.8]}
7. Bb3 {[%clk 0:02:44.8]} 7... Be7 {[%clk 0:03:02.2]} 8. Be3 {[%clk 0:02:43.4]}
8... b5 {[%clk 0:03:01.2]} 9. Qe2 {[%clk 0:02:43]} 9... Bb7 {[%clk 0:02:59.9]}
10. f3 {[%clk 0:02:41.8]} 10... O-O {[%clk 0:02:59.8]} 11. O-O-O {[%clk
0:02:40.5]} 11... Qc7 {[%clk 0:02:58.5]} 12. g4 {[%clk 0:02:38]} 12... Nbd7
{[%clk 0:02:58.5]} 13. g5 {[%clk 0:02:12.1]} 13... Ne8 {[%clk 0:02:54.2]} 14. h4
{[%clk 0:02:03.8]} 14... Nc5 {[%clk 0:02:51.9]} 15. g6 {[%clk 0:02:00.4]} 15...
hxg6 {[%clk 0:02:47.5]} 16. h5 {[%clk 0:01:59.7]} 16... g5 {[%clk 0:02:47.6]}
17. h6 {[%clk 0:01:58]} 17... g6 {[%clk 0:02:46.6]} 18. h7+ {[%clk 0:01:51.7]}
18... Kh8 {[%clk 0:02:45.4]} 19. Qd2 {[%clk 0:01:44]} 19... b4 {[%clk
0:02:18.6]} 20. Na4 {[%clk 0:01:41.6]} 20... Nxb3+ {[%clk 0:02:11.2]} 21. axb3
{[%clk 0:01:39.3]} 21... Rc8 {[%clk 0:02:09.1]} 22. Rdg1 {[%clk 0:01:09.9]}
22... e5 {[%clk 0:01:52]} 23. Ne2 {[%clk 0:01:01.2]} 23... Ng7 {[%clk
0:01:11.1]} 24. Nb6 {[%clk 0:00:53.5]} 24... Ne6 {[%clk 0:00:57.2]} 25. Nxc8
{[%clk 0:00:47.8]} 25... Rxc8 {[%clk 0:00:58.1]} 26. Kb1 {[%clk 0:00:47]} 26...
a5 {[%clk 0:00:56.9]} 27. Rc1 {[%clk 0:00:40.6]} 27... Ba6 {[%clk 0:00:53.4]}
28. c3 {[%clk 0:00:32.7]} 28... Qb7 {[%clk 0:00:33.4]} 29. cxb4 {[%clk
0:00:28.6]} 29... Rxc1+ {[%clk 0:00:33.4]} 30. Nxc1 {[%clk 0:00:24.9]} 30...
axb4 {[%clk 0:00:34.3]} 31. Nd3 {[%clk 0:00:24.7]} 31... d5 {[%clk 0:00:23]} 32.
Nxe5 {[%clk 0:00:24.5]} 32... dxe4 {[%clk 0:00:20.1]} 33. Nxf7+ {[%clk
0:00:23.6]} 33... Kg7 {[%clk 0:00:19.5]} 34. h8=Q+ {[%clk 0:00:23.6]} 34... Kxf7
{[%clk 0:00:20.4]} 35. Rh7+ {[%clk 0:00:23.5]} 1-0

[Event "*** SCC Grand Prix: Titled Tuesday Blitz"]
[Site "Chess.com"]
[Date "2020.08.25"]
[Round "1"]
[White "anon481216"]
[Black "ChessWarrior7197"]
[Result "0-1"]
[WhiteElo "2438"]
[BlackElo "2909"]
[TimeControl "180+1"]
[EndTime "10:06:56 PDT"]
[Termination "ChessWarrior7197 won on time"]

1. d4 {[%clk 0:03:00.9]} 1... d5 {[%clk 0:02:59.5]} 2. c4 {[%clk 0:03:01.1]}
2... e6 {[%clk 0:02:58.8]} 3. Nc3 {[%clk 0:03:01.4]} 3... c5 {[%clk 0:02:58.9]}
4. cxd5 {[%clk 0:03:00]} 4... exd5 {[%clk 0:02:59.8]} 5. Nf3 {[%clk 0:02:59.9]}
5... Nc6 {[%clk 0:03:00]} 6. g3 {[%clk 0:03:00]} 6... Nf6 {[%clk 0:02:59.8]} 7.
Bg2 {[%clk 0:03:00.1]} 7... cxd4 {[%clk 0:03:00.7]} 8. Nxd4 {[%clk 0:02:59.6]}
8... Bc5 {[%clk 0:03:01.1]} 9. Nb3 {[%clk 0:02:58.4]} 9... Bb6 {[%clk
0:03:00.8]} 10. O-O {[%clk 0:02:58.1]} 10... d4 {[%clk 0:03:00.9]} 11. Na4
{[%clk 0:02:56.4]} 11... O-O {[%clk 0:03:00.6]} 12. Nxb6 {[%clk 0:02:53.8]}
12... axb6 {[%clk 0:03:01.5]} 13. Bg5 {[%clk 0:02:50.7]} 13... Re8 {[%clk
0:02:56]} 14. Qd2 {[%clk 0:02:41.2]} 14... h6 {[%clk 0:02:53.9]} 15. Bxf6 {[%clk
0:02:37.6]} 15... Qxf6 {[%clk 0:02:54.8]} 16. h3 {[%clk 0:02:26]} 16... Be6
{[%clk 0:02:50.4]} 17. Rfd1 {[%clk 0:02:20.9]} 17... Rad8 {[%clk 0:02:37]} 18.
Rac1 {[%clk 0:02:16]} 18... Bd5 {[%clk 0:02:35.9]} 19. Bxd5 {[%clk 0:01:47.8]}
19... Rxd5 {[%clk 0:02:36.8]} 20. Kg2 {[%clk 0:01:29.2]} 20... Rf5 {[%clk
0:02:30.5]} 21. Rf1 {[%clk 0:01:23.2]} 21... h5 {[%clk 0:02:30]} 22. h4 {[%clk
0:01:20.9]} 22... Qe6 {[%clk 0:02:27.4]} 23. Rfe1 {[%clk 0:01:17.3]} 23... Qe4+
{[%clk 0:02:08]} 24. Kg1 {[%clk 0:01:12.3]} 24... Rd8 {[%clk 0:01:57.5]} 25. a3
{[%clk 0:01:04.9]} 25... Ne5 {[%clk 0:01:56.3]} 26. Rc7 {[%clk 0:01:00.8]} 26...
Ng4 {[%clk 0:01:51.8]} 27. Rf1 {[%clk 0:00:48]} 27... Qe5 {[%clk 0:01:46.6]} 28.
Rxb7 {[%clk 0:00:42.3]} 28... Ne3 {[%clk 0:01:37.5]} 29. Rc1 {[%clk 0:00:38.4]}
29... Qd5 {[%clk 0:01:34.1]} 30. fxe3 {[%clk 0:00:34.8]} 30... Qxb7 {[%clk
0:01:33.8]} 31. exd4 {[%clk 0:00:32.8]} 31... Qe4 {[%clk 0:01:31.9]} 32. Rc3
{[%clk 0:00:27.8]} 32... Re8 {[%clk 0:01:29.7]} 33. Nc1 {[%clk 0:00:19]} 33...
Rd5 {[%clk 0:01:28.6]} 34. e3 {[%clk 0:00:18.2]} 34... Rf5 {[%clk 0:01:27.2]}
35. Ne2 {[%clk 0:00:10.3]} 35... Rf3 {[%clk 0:01:26.6]} 36. d5 {[%clk
0:00:09.6]} 36... Rxe3 {[%clk 0:01:25.8]} 37. Rxe3 {[%clk 0:00:09.4]} 37...
Qxe3+ {[%clk 0:01:25.4]} 38. Qxe3 {[%clk 0:00:09.5]} 38... Rxe3 {[%clk
0:01:26.3]} 39. Kf2 {[%clk 0:00:09.2]} 39... Re5 {[%clk 0:01:25.9]} 40. Nc3
{[%clk 0:00:08.9]} 40... Kf8 {[%clk 0:01:24.5]} 41. Kf3 {[%clk 0:00:09.3]} 41...
Ke7 {[%clk 0:01:23.9]} 42. a4 {[%clk 0:00:08.1]} 42... Kd6 {[%clk 0:01:23.1]}
43. b4 {[%clk 0:00:06.5]} 43... Re1 {[%clk 0:01:20]} 44. Kf4 {[%clk 0:00:03.5]}
44... Rc1 {[%clk 0:01:17.5]} 45. Ne4+ {[%clk 0:00:01.7]} 45... Kxd5 {[%clk
0:01:17.3]} 46. Ng5 {[%clk 0:00:02.3]} 46... Rc4+ {[%clk 0:01:16.4]} 47. Kf5
{[%clk 0:00:01.7]} 47... f6 {[%clk 0:01:17.3]} 0-1

[Event "*** SCC Grand Prix: Titled Tuesday Blitz"]
[Site "Chess.com"]
[Date "2020.08.25"]
[Round "1"]
[White "Korchmar_Vasiliy"]
[Black "mfwagnerpeixoto"]
[Result "1-0"]
[WhiteElo "2608"]
[BlackElo "2276"]
[TimeControl "180+1"]
[EndTime "10:06:57 PDT"]
[Termination "Korchmar_Vasiliy won by resignation"]

1. d4 {[%clk 0:03:00.9]} 1... Nf6 {[%clk 0:02:58.8]} 2. Nf3 {[%clk 0:03:00.4]}
2... g6 {[%clk 0:02:59.1]} 3. Bg5 {[%clk 0:02:59.7]} 3... Bg7 {[%clk 0:02:58.8]}
4. Nbd2 {[%clk 0:02:59.9]} 4... O-O {[%clk 0:02:58]} 5. e3 {[%clk 0:03:00.2]}
5... b6 {[%clk 0:02:56.5]} 6. Bd3 {[%clk 0:03:00.1]} 6... Bb7 {[%clk 0:02:56.2]}
7. O-O {[%clk 0:03:00.7]} 7... c5 {[%clk 0:02:56]} 8. c3 {[%clk 0:03:00.6]} 8...
d6 {[%clk 0:02:55.5]} 9. Re1 {[%clk 0:02:56.6]} 9... Nbd7 {[%clk 0:02:55.2]} 10.
a4 {[%clk 0:02:56.3]} 10... a6 {[%clk 0:02:53.8]} 11. e4 {[%clk 0:02:56.5]}
11... cxd4 {[%clk 0:02:49.7]} 12. cxd4 {[%clk 0:02:55.4]} 12... e5 {[%clk
0:02:44.6]} 13. Nc4 {[%clk 0:02:41.4]} 13... Qb8 {[%clk 0:02:37.6]} 14. d5
{[%clk 0:01:56.2]} 14... Nc5 {[%clk 0:02:31.2]} 15. Nxb6 {[%clk 0:01:54.2]}
15... Ra7 {[%clk 0:02:21]} 16. b4 {[%clk 0:01:53.7]} 16... Nxd3 {[%clk
0:02:20.5]} 17. Qxd3 {[%clk 0:01:54.6]} 17... Qd8 {[%clk 0:02:04]} 18. a5 {[%clk
0:01:49.5]} 18... h6 {[%clk 0:02:01.2]} 19. Bxf6 {[%clk 0:01:31.5]} 19... Bxf6
{[%clk 0:02:02.1]} 20. Qe3 {[%clk 0:01:32]} 20... Bg7 {[%clk 0:01:56.2]} 21. Nd7
{[%clk 0:01:29.3]} 21... Ra8 {[%clk 0:01:48.6]} 22. Nxf8 {[%clk 0:01:28.5]}
22... Qxf8 {[%clk 0:01:49.5]} 23. Nd2 {[%clk 0:01:20.1]} 23... f5 {[%clk
0:01:46.4]} 24. Nc4 {[%clk 0:01:19.2]} 24... h5 {[%clk 0:01:32.1]} 25. Nb6
{[%clk 0:01:17.4]} 25... Rd8 {[%clk 0:01:29.3]} 26. Rac1 {[%clk 0:01:11.8]}
26... Bh6 {[%clk 0:01:26.2]} 27. Qg3 {[%clk 0:01:12.4]} 27... Qg7 {[%clk
0:01:14.5]} 28. Rc6 {[%clk 0:01:06.4]} 28... Bxc6 {[%clk 0:01:11.9]} 29. dxc6
{[%clk 0:01:07.3]} 29... Bd2 {[%clk 0:01:03.9]} 30. Rd1 {[%clk 0:01:01.1]} 30...
Bf4 {[%clk 0:01:03.8]} 31. Qb3+ {[%clk 0:00:58.2]} 31... Kh7 {[%clk 0:01:01.7]}
32. Qe6 {[%clk 0:00:53.8]} 32... fxe4 {[%clk 0:00:57.5]} 33. g3 {[%clk
0:00:52.4]} 33... e3 {[%clk 0:00:55.1]} 34. gxf4 {[%clk 0:00:48.3]} 34... exf2+
{[%clk 0:00:55]} 35. Kxf2 {[%clk 0:00:45.3]} 35... Rf8 {[%clk 0:00:53.5]} 36.
Rxd6 {[%clk 0:00:34.9]} 36... Rxf4+ {[%clk 0:00:47.8]} 37. Kg2 {[%clk
0:00:33.8]} 37... Kh6 {[%clk 0:00:29.1]} 38. Qxg6+ {[%clk 0:00:22.9]} 38...
Qxg6+ {[%clk 0:00:28]} 39. Rxg6+ {[%clk 0:00:23.8]} 39... Kxg6 {[%clk
0:00:28.6]} 40. c7 {[%clk 0:00:24.7]} 1-0

[Event "*** SCC Grand Prix: Titled Tuesday Blitz"]
[Site "Chess.com"]
[Date "2020.08.25"]
[Round "1"]
[White "crackcubano"]
[Black "SHIVACalypso"]
[Result "1/2-1/2"]
[WhiteElo "2643"]
[BlackElo "2326"]
[TimeControl "180+1"]
[EndTime "10:06:58 PDT"]
[Termination "Game drawn by repetition"]

1. e4 {[%clk 0:03:00.9]} 1... e6 {[%clk 0:02:57.5]} 2. d4 {[%clk 0:03:00.6]}
2... d5 {[%clk 0:02:57.5]} 3. Nd2 {[%clk 0:03:00.7]} 3... Nf6 {[%clk 0:02:56]}
4. e5 {[%clk 0:03:00.4]} 4... Nfd7 {[%clk 0:02:56.5]} 5. f4 {[%clk 0:02:59.6]}
5... c5 {[%clk 0:02:56.8]} 6. c3 {[%clk 0:02:59.6]} 6... Nc6 {[%clk 0:02:54.3]}
7. Ndf3 {[%clk 0:02:59.4]} 7... cxd4 {[%clk 0:02:48.4]} 8. cxd4 {[%clk
0:02:58.9]} 8... a5 {[%clk 0:02:48.8]} 9. Bd3 {[%clk 0:02:57.9]} 9... a4 {[%clk
0:02:41.4]} 10. a3 {[%clk 0:02:54.6]} 10... b5 {[%clk 0:02:35.7]} 11. Ne2 {[%clk
0:02:53.5]} 11... Qb6 {[%clk 0:02:34.5]} 12. f5 {[%clk 0:02:44.9]} 12... exf5
{[%clk 0:02:30.6]} 13. Nf4 {[%clk 0:02:40.5]} 13... Nxd4 {[%clk 0:02:20.8]} 14.
Nxd5 {[%clk 0:02:36.5]} 14... Nxf3+ {[%clk 0:02:20.2]} 15. Qxf3 {[%clk
0:02:35.6]} 15... Qb7 {[%clk 0:02:09.6]} 16. Bf4 {[%clk 0:02:10.5]} 16... b4
{[%clk 0:01:57.3]} 17. Rc1 {[%clk 0:01:58.7]} 17... bxa3 {[%clk 0:01:47.6]} 18.
bxa3 {[%clk 0:01:14.9]} 18... Bxa3 {[%clk 0:01:44.1]} 19. Rc7 {[%clk 0:01:12]}
19... Qb2 {[%clk 0:01:36.4]} 20. Nf6+ {[%clk 0:01:00]} 20... gxf6 {[%clk
0:01:32.9]} 21. Qxa8 {[%clk 0:00:59.1]} 21... O-O {[%clk 0:01:24.4]} 22. Rxc8
{[%clk 0:00:58.1]} 22... Qa1+ {[%clk 0:01:21.7]} 23. Kf2 {[%clk 0:00:50.5]}
23... Bc5+ {[%clk 0:01:03.4]} 24. Kg3 {[%clk 0:00:45.9]} 24... Qxh1 {[%clk
0:01:00.4]} 25. Bxf5 {[%clk 0:00:38.4]} 25... Qe1+ {[%clk 0:00:57.1]} 26. Kh3
{[%clk 0:00:37.4]} 26... Nxe5 {[%clk 0:00:52.7]} 27. Bh6 {[%clk 0:00:34]} 27...
Qc3+ {[%clk 0:00:33.5]} 28. g3 {[%clk 0:00:32.9]} 28... Qb4 {[%clk 0:00:28.6]}
29. Bxf8 {[%clk 0:00:26.6]} 29... Bxf8 {[%clk 0:00:29.5]} 30. Bxh7+ {[%clk
0:00:17.7]} 30... Kxh7 {[%clk 0:00:30.4]} 31. Rxf8 {[%clk 0:00:17.9]} 31... Qg4+
{[%clk 0:00:29.9]} 32. Kg2 {[%clk 0:00:17.4]} 32... Qe2+ {[%clk 0:00:30.3]} 33.
Kh3 {[%clk 0:00:17.2]} 33... Qg4+ {[%clk 0:00:30.3]} 34. Kg2 {[%clk 0:00:17]}
34... Qe2+ {[%clk 0:00:30.5]} 35. Kh3 {[%clk 0:00:16.9]} 35... Qg4+ {[%clk
0:00:24.1]} 1/2-1/2

[Event "*** SCC Grand Prix: Titled Tuesday Blitz"]
[Site "Chess.com"]
[Date "2020.08.25"]
[Round "1"]
[White "tvjosue"]
[Black "MrrRefrao"]
[Result "1-0"]
[WhiteElo "2546"]
[BlackElo "2215"]
[TimeControl "180+1"]
[EndTime "10:07:05 PDT"]
[Termination "tvjosue won on time"]

1. Nf3 {[%clk 0:02:59]} 1... g6 {[%clk 0:02:55.4]} 2. c4 {[%clk 0:02:58.2]} 2...
Bg7 {[%clk 0:02:55.4]} 3. Nc3 {[%clk 0:02:59.1]} 3... d6 {[%clk 0:02:53.4]} 4.
g3 {[%clk 0:02:59.1]} 4... e5 {[%clk 0:02:53.1]} 5. Bg2 {[%clk 0:02:59.4]} 5...
f5 {[%clk 0:02:53.4]} 6. d4 {[%clk 0:02:55.3]} 6... e4 {[%clk 0:02:51.8]} 7. Ng5
{[%clk 0:02:55]} 7... h6 {[%clk 0:02:33.5]} 8. Nh3 {[%clk 0:02:53.8]} 8... g5
{[%clk 0:02:20.9]} 9. f3 {[%clk 0:02:51.1]} 9... Nf6 {[%clk 0:02:09.6]} 10. Nf2
{[%clk 0:02:45.4]} 10... exf3 {[%clk 0:01:27.1]} 11. exf3 {[%clk 0:02:46.3]}
11... O-O {[%clk 0:01:27.1]} 12. O-O {[%clk 0:02:26.4]} 12... Nc6 {[%clk
0:01:26.4]} 13. f4 {[%clk 0:02:17.7]} 13... g4 {[%clk 0:01:13.6]} 14. d5 {[%clk
0:02:10.2]} 14... Ne7 {[%clk 0:01:13.3]} 15. Re1 {[%clk 0:02:09.6]} 15... Ng6
{[%clk 0:01:12.5]} 16. Qd2 {[%clk 0:02:01.7]} 16... h5 {[%clk 0:01:03.8]} 17. b3
{[%clk 0:01:54.4]} 17... h4 {[%clk 0:01:02.8]} 18. Bb2 {[%clk 0:01:53.7]} 18...
Nh5 {[%clk 0:01:00.4]} 19. Nh1 {[%clk 0:01:40.1]} 19... c6 {[%clk 0:00:52.3]}
20. dxc6 {[%clk 0:01:29.5]} 20... bxc6 {[%clk 0:00:45.6]} 21. Rad1 {[%clk
0:01:25.8]} 21... Qb6+ {[%clk 0:00:30]} 22. Qf2 {[%clk 0:01:23.6]} 22... hxg3
{[%clk 0:00:27.7]} 23. hxg3 {[%clk 0:01:22.9]} 23... Bb7 {[%clk 0:00:12.1]} 24.
Rxd6 {[%clk 0:01:13.3]} 24... Kh7 {[%clk 0:00:12.5]} 25. Rd7 {[%clk 0:01:07.8]}
25... Ba6 {[%clk 0:00:09.9]} 26. Qxb6 {[%clk 0:01:02.4]} 26... axb6 {[%clk
0:00:09.9]} 27. Bxc6 {[%clk 0:01:02.2]} 27... Rae8 {[%clk 0:00:09.7]} 28. Rxe8
{[%clk 0:01:00.2]} 28... Rxe8 {[%clk 0:00:09.6]} 29. Rxg7+ {[%clk 0:00:57.7]}
29... Nxg7 {[%clk 0:00:09]} 30. Bxe8 {[%clk 0:00:58.6]} 30... Nxe8 {[%clk
0:00:09.9]} 31. a4 {[%clk 0:00:57.5]} 31... Ne7 {[%clk 0:00:06.3]} 32. Nb5
{[%clk 0:00:55.5]} 32... Nc6 {[%clk 0:00:06.3]} 33. Bc3 {[%clk 0:00:55.2]} 33...
Ng7 {[%clk 0:00:04.7]} 34. Nf2 {[%clk 0:00:54.3]} 34... Ne6 {[%clk 0:00:02.1]}
35. Nd3 {[%clk 0:00:44.1]} 35... Bb7 {[%clk 0:00:02]} 36. Nd6 {[%clk 0:00:35.1]}
1-0

[Event "*** SCC Grand Prix: Titled Tuesday Blitz"]
[Site "Chess.com"]
[Date "2020.08.25"]
[Round "1"]
[White "Nemsko"]
[Black "XDPS"]
[Result "0-1"]
[WhiteElo "2382"]
[BlackElo "2725"]
[TimeControl "180+1"]
[EndTime "10:07:06 PDT"]
[Termination "XDPS won on time"]

1. e4 {[%clk 0:03:00.9]} 1... c5 {[%clk 0:02:58.9]} 2. Nf3 {[%clk 0:03:00.9]}
2... d6 {[%clk 0:02:58.9]} 3. d4 {[%clk 0:03:01.8]} 3... cxd4 {[%clk 0:02:59.6]}
4. Nxd4 {[%clk 0:03:02.7]} 4... Nf6 {[%clk 0:03:00.1]} 5. Nc3 {[%clk 0:03:02.6]}
5... a6 {[%clk 0:03:00.7]} 6. Be3 {[%clk 0:03:02.4]} 6... e6 {[%clk 0:03:00.5]}
7. f4 {[%clk 0:03:01.2]} 7... Qc7 {[%clk 0:02:57]} 8. Be2 {[%clk 0:02:59.6]}
8... Be7 {[%clk 0:02:56.5]} 9. Qd2 {[%clk 0:02:58.5]} 9... Nc6 {[%clk
0:02:56.2]} 10. O-O-O {[%clk 0:02:58.3]} 10... O-O {[%clk 0:02:53.2]} 11. g4
{[%clk 0:02:55.2]} 11... d5 {[%clk 0:02:47.2]} 12. e5 {[%clk 0:02:51.1]} 12...
Ne4 {[%clk 0:02:47.8]} 13. Nxe4 {[%clk 0:02:50.7]} 13... dxe4 {[%clk 0:02:48.7]}
14. Kb1 {[%clk 0:02:48.1]} 14... Rd8 {[%clk 0:02:42.8]} 15. c3 {[%clk
0:02:46.1]} 15... Bd7 {[%clk 0:02:41]} 16. Qc2 {[%clk 0:02:42.6]} 16... Nxd4
{[%clk 0:02:39.9]} 17. Bxd4 {[%clk 0:02:36.3]} 17... Bc6 {[%clk 0:02:38.7]} 18.
f5 {[%clk 0:02:32.2]} 18... Bf8 {[%clk 0:02:33.3]} 19. Rhg1 {[%clk 0:02:27.1]}
19... Rac8 {[%clk 0:02:31.6]} 20. Rg3 {[%clk 0:02:14.5]} 20... b5 {[%clk
0:02:30.2]} 21. f6 {[%clk 0:01:30.2]} 21... g6 {[%clk 0:02:29.3]} 22. g5 {[%clk
0:01:29.1]} 22... a5 {[%clk 0:02:14.4]} 23. h4 {[%clk 0:01:14.2]} 23... b4
{[%clk 0:02:14.4]} 24. h5 {[%clk 0:01:12.4]} 24... Be8 {[%clk 0:02:07.7]} 25.
hxg6 {[%clk 0:01:10.2]} 25... fxg6 {[%clk 0:02:07.9]} 26. Qxe4 {[%clk
0:01:07.1]} 26... a4 {[%clk 0:01:56]} 27. Bg4 {[%clk 0:00:57]} 27... Bf7 {[%clk
0:01:51]} 28. Rh3 {[%clk 0:00:52.9]} 28... a3 {[%clk 0:01:38.1]} 29. Rdh1 {[%clk
0:00:50.8]} 29... h6 {[%clk 0:01:11.7]} 30. gxh6 {[%clk 0:00:28.7]} 30... Kh8
{[%clk 0:01:02.7]} 31. Rg3 {[%clk 0:00:07.5]} 31... axb2 {[%clk 0:00:52.6]} 32.
Bxe6 {[%clk 0:00:07.5]} 32... Bxe6 {[%clk 0:00:50.1]} 33. Qxg6 {[%clk
0:00:07.1]} 33... Qh7 {[%clk 0:00:34.7]} 34. Qxh7+ {[%clk 0:00:02.4]} 34... Kxh7
{[%clk 0:00:35.6]} 35. Kxb2 {[%clk 0:00:01.5]} 35... bxc3+ {[%clk 0:00:35.4]}
36. Bxc3 {[%clk 0:00:02.4]} 36... Rb8+ {[%clk 0:00:32.4]} 37. Ka1 {[%clk
0:00:02.4]} 37... Ra8 {[%clk 0:00:28.5]} 38. Rg2 {[%clk 0:00:01.4]} 38... Bd5
{[%clk 0:00:28.2]} 0-1

[Event "*** SCC Grand Prix: Titled Tuesday Blitz"]
[Site "Chess.com"]
[Date "2020.08.25"]
[Round "1"]
[White "Klavdia_Nik"]
[Black "BasilSmash"]
[Result "0-1"]
[WhiteElo "2053"]
[BlackElo "2480"]
[TimeControl "180+1"]
[EndTime "10:07:06 PDT"]
[Termination "BasilSmash won by resignation"]

1. Nf3 {[%clk 0:02:57.7]} 1... d5 {[%clk 0:02:58.9]} 2. c4 {[%clk 0:02:56.8]}
2... dxc4 {[%clk 0:02:54.8]} 3. Na3 {[%clk 0:02:55.1]} 3... g6 {[%clk
0:02:49.8]} 4. Nxc4 {[%clk 0:02:54.8]} 4... Bg7 {[%clk 0:02:49.2]} 5. d3 {[%clk
0:02:53.6]} 5... Nc6 {[%clk 0:02:45.1]} 6. g3 {[%clk 0:02:52.8]} 6... e5 {[%clk
0:02:44.3]} 7. Bg2 {[%clk 0:02:51.1]} 7... e4 {[%clk 0:02:43]} 8. dxe4 {[%clk
0:02:38.3]} 8... Qxd1+ {[%clk 0:02:43]} 9. Kxd1 {[%clk 0:02:38.5]} 9... Nf6
{[%clk 0:02:43.5]} 10. Nfd2 {[%clk 0:02:20.9]} 10... Be6 {[%clk 0:02:30]} 11. a3
{[%clk 0:01:44.6]} 11... O-O-O {[%clk 0:02:25.8]} 12. Ke1 {[%clk 0:01:41.2]}
12... Nd4 {[%clk 0:02:22.4]} 13. Ne3 {[%clk 0:01:41.1]} 13... Ng4 {[%clk
0:02:16.7]} 14. Ndf1 {[%clk 0:01:33.6]} 14... Nb3 {[%clk 0:01:57.4]} 15. Rb1
{[%clk 0:01:29.9]} 15... Nxc1 {[%clk 0:01:52.9]} 16. Rxc1 {[%clk 0:01:29.2]}
16... Bxb2 {[%clk 0:01:47.4]} 17. Rc2 {[%clk 0:01:18.9]} 17... Bxa3 {[%clk
0:01:46.2]} 18. Nd5 {[%clk 0:01:04.6]} 18... c6 {[%clk 0:01:32.6]} 19. Nfe3
{[%clk 0:00:43.7]} 19... Nxe3 {[%clk 0:01:27]} 20. fxe3 {[%clk 0:00:39.4]} 20...
Kb8 {[%clk 0:01:20.3]} 21. Ra2 {[%clk 0:00:18]} 21... Bf8 {[%clk 0:01:06]} 22.
Kf2 {[%clk 0:00:14.1]} 22... cxd5 {[%clk 0:00:36.6]} 23. Rd1 {[%clk 0:00:13.5]}
23... Bc5 {[%clk 0:00:31.3]} 24. exd5 {[%clk 0:00:12.1]} 24... Bd7 {[%clk
0:00:28.1]} 25. Rc1 {[%clk 0:00:10.6]} 25... b6 {[%clk 0:00:27]} 26. Be4 {[%clk
0:00:06.3]} 26... Rhe8 {[%clk 0:00:24.6]} 27. Kf3 {[%clk 0:00:06.5]} 27... f5
{[%clk 0:00:22.4]} 28. Rxc5 {[%clk 0:00:01.1]} 0-1